fUST/lending_fUST_20250513
["ID","MTS","AMOUNT","RATE_DAILY","PERIOD"]
[360878629,1747095057518,-400.0,0.00019452,2]
[360878630,1747095057528,-618.91,0.00019452,2]
[360878631,1747095057537,-539.231565,0.00019452,2]
[360878632,1747095057546,-539.231565,0.00019452,2]
[360878633,1747095057555,-400.0,0.00019452,2]
[360878634,1747095057564,-539.231565,0.00019452,2]
[360878635,1747095057573,-539.231565,0.00019452,2]
[360878636,1747095057583,-539.231565,0.00019452,2]
[360878637,1747095057593,-400.0,0.00019452,2]
[360878638,1747095057602,-151.0,0.00019452,2]
[360878639,1747095057612,-151.0,0.00019452,2]
[360878640,1747095057621,-151.0,0.00019452,2]
[360878641,1747095057631,-151.0,0.00019452,2]
[360878642,1747095057640,-151.0,0.00019452,2]
[360878643,1747095057650,-400.0,0.00019452,2]
[360878644,1747095057660,-400.0,0.00019452,2]
[360878645,1747095057669,-236.14857766,0.00019452,2]
[360878646,1747095057678,-400.0,0.00019452,2]
[360878647,1747095057687,-403.57,0.00019452,2]
[360878648,1747095057697,-400.0,0.00019452,2]
[360878649,1747095057706,-400.0,0.00019452,2]
[360878650,1747095057715,-215.90554789,0.00019452,2]
[360878651,1747095057725,-472.24,0.00019452,2]
[360878652,1747095057734,-400.0,0.00019452,2]
[360878653,1747095057743,-400.0,0.00019452,2]
[360878654,1747095057752,-753.05,0.00019452,2]
[360878655,1747095057761,-400.0,0.00019452,2]
[360878656,1747095057770,-400.0,0.00019452,2]
[360878657,1747095057779,-400.0,0.00019452,2]
[360878658,1747095057788,-2458.8,0.00019452,2]
[360878659,1747095057798,-681.27,0.00019452,2]
[360878660,1747095057807,-400.0,0.00019452,2]
[360878661,1747095057816,-2323.74,0.00019452,2]
[360878662,1747095057824,-400.0,0.00019452,2]
[360878663,1747095057833,-511.52010262,0.00019452,2]
[360878664,1747095057843,-1347.32,0.00019452,2]
[360878665,1747095057852,-400.0,0.00019452,2]
[360878666,1747095057861,-400.0,0.00019452,2]
[360878667,1747095057871,-437.09,0.00019452,2]
[360878668,1747095057880,-400.0,0.00019452,2]
[360878669,1747095057890,-775.89,0.00019452,2]
[360878670,1747095057900,-400.0,0.00019452,2]
[360878671,1747095057909,-400.0,0.00019452,2]
[360878672,1747095057918,-1732.31,0.00019452,2]
[360878673,1747095057928,-1218.43,0.00019452,2]
[360878674,1747095057937,-400.0,0.00019452,2]
[360878675,1747095057946,-400.0,0.00019452,2]
[360878676,1747095057955,-400.0,0.00019452,2]
[360878677,1747095057965,-400.0,0.00019452,2]
[360878678,1747095057974,-400.0,0.00019452,2]
[360878679,1747095057983,-571.03,0.00019452,2]
[360878680,1747095057992,-304.314381,0.00019452,2]
[360878681,1747095058002,-389.40259724,0.00019452,2]
[360878682,1747095058011,-400.0,0.00019452,2]
[360878683,1747095058020,-304.314381,0.00019452,2]
[360878684,1747095058029,-304.314381,0.00019452,2]
[360878685,1747095058039,-304.314381,0.00019452,2]
[360878686,1747095058048,-304.314381,0.00019452,2]
[360878687,1747095058058,-400.0,0.00019452,2]
[360878688,1747095058067,-400.0,0.00019452,2]
[360878689,1747095058076,-400.0,0.00019452,2]
[360878690,1747095058085,-348.898482,0.00019452,2]
[360878691,1747095058094,-304.314381,0.00019452,2]
[360878692,1747095058103,-348.898482,0.00019452,2]
[360878693,1747095058113,-400.0,0.00019452,2]
[360878694,1747095058123,-304.314381,0.00019452,2]
[360878695,1747095058132,-304.314381,0.00019452,2]
[360878696,1747095058141,-612.09,0.00019452,2]
[360878697,1747095058150,-304.314381,0.00019452,2]
[360878698,1747095058160,-348.898482,0.00019452,2]
[360878699,1747095058172,-400.0,0.00019452,2]
[360878700,1747095058182,-400.0,0.00019452,2]
[360878701,1747095058191,-348.898482,0.00019452,2]
[360878702,1747095058202,-304.314381,0.00019452,2]
[360878703,1747095058212,-348.898482,0.00019452,2]
[360878704,1747095058221,-151.0,0.00019452,2]
[360878705,1747095058231,-151.0,0.00019452,2]
[360878706,1747095058240,-151.0,0.00019452,2]
[360878707,1747095058252,-513.48,0.00019452,2]
[360878708,1747095058263,-151.0,0.00019452,2]
[360878709,1747095058272,-151.0,0.00019452,2]
[360878710,1747095058281,-151.0,0.00019452,2]
[360878711,1747095058291,-151.0,0.00019452,2]
[360878712,1747095058300,-348.898482,0.00019452,2]
[360878713,1747095058309,-403.63,0.00019452,2]
[360878714,1747095058319,-348.898482,0.00019452,2]
[360878715,1747095058328,-348.898482,0.00019452,2]
[360878716,1747095058337,-151.0,0.00019452,2]
[360878717,1747095058347,-604.079927,0.00019452,2]
[360878718,1747095058356,-151.0,0.00019452,2]
[360878719,1747095058368,-348.898482,0.00019452,2]
[360878720,1747095058378,-604.079927,0.00019452,2]
[360878721,1747095058387,-151.0,0.00019452,2]
[360878722,1747095058397,-348.898482,0.00019452,2]
[360878723,1747095058407,-604.079927,0.00019452,2]
[360878724,1747095058417,-151.0,0.00019452,2]
[360878725,1747095058426,-604.079927,0.00019452,2]
[360878726,1747095058436,-151.0,0.00019452,2]
[360878727,1747095058446,-604.079927,0.00019452,2]
[360878728,1747095058455,-151.0,0.00019452,2]
[360878729,1747095058465,-875.83,0.00019452,2]
[360878730,1747095058475,-694.23,0.00019452,2]
[360878731,1747095058484,-151.0,0.00019452,2]
[360878732,1747095058493,-186.297847,0.00019452,2]
[360878733,1747095058502,-400.0,0.00019452,2]
[360878734,1747095058512,-604.079927,0.00019452,2]
[360878735,1747095058521,-604.079927,0.00019452,2]
[360878736,1747095058531,-604.079927,0.00019452,2]
[360878737,1747095058540,-674.31,0.00019452,2]
[360878738,1747095058549,-251.37265953,0.00019452,2]
[360878739,1747095058558,-604.079927,0.00019452,2]
[360878740,1747095058567,-604.079927,0.00019452,2]
[360878741,1747095058576,-151.0,0.00019452,2]
[360878742,1747095058585,-151.0,0.00019452,2]
[360878743,1747095058595,-491.15,0.00019452,2]
[360878744,1747095058604,-400.0,0.00019452,2]
[360878745,1747095058614,-400.0,0.00019452,2]
[360878746,1747095058623,-400.0,0.00019452,2]
[360878747,1747095058632,-908.54,0.00019452,2]
[360878748,1747095058641,-400.0,0.00019452,2]
[360878749,1747095058650,-400.0,0.00019452,2]
[360878750,1747095058660,-400.0,0.00019452,2]
[360878751,1747095058669,-559.11,0.00019452,2]
[360878752,1747095058679,-500.0,0.00019452,2]
[360878753,1747095058688,-532.92,0.00019452,2]
[360878754,1747095058697,-400.0,0.00019452,2]
[360878755,1747095058707,-703.95,0.00019452,2]
[360878756,1747095058716,-151.0,0.00019452,2]
[360878757,1747095058725,-151.0,0.00019452,2]
[360878758,1747095058734,-400.0,0.00019452,2]
[360878759,1747095058744,-478.52,0.00019452,2]
[360878760,1747095058753,-151.0,0.00019452,2]
[360878761,1747095058762,-151.0,0.00019452,2]
[360878762,1747095058772,-400.0,0.00019452,2]
[360878763,1747095058781,-151.0,0.00019452,2]
[360878764,1747095058790,-151.0,0.00019452,2]
[360878765,1747095058800,-151.0,0.00019452,2]
[360878766,1747095058809,-753.84,0.00019452,2]
[360878767,1747095058821,-166.753894,0.00019452,2]
[360878768,1747095058831,-400.0,0.00019452,2]
[360878769,1747095058840,-400.0,0.00019452,2]
[360878770,1747095058849,-400.0,0.00019452,2]
[360878771,1747095058859,-400.0,0.00019452,2]
[360878772,1747095058870,-400.0,0.00019452,2]
[360878773,1747095058879,-1024.52,0.00019452,2]
[360878774,1747095058888,-400.0,0.00019452,2]
[360878775,1747095058898,-408.91197465,0.00019452,2]
[360878776,1747095058906,-400.0,0.00019452,2]
[360878777,1747095058915,-1495.3,0.00019452,2]
[360878778,1747095058925,-400.0,0.00019452,2]
[360878779,1747095058934,-400.0,0.00019452,2]
[360878780,1747095058943,-400.0,0.00019452,2]
[360878781,1747095058952,-400.0,0.00019452,2]
[360878782,1747095058961,-598.61,0.00019452,2]
[360878783,1747095058970,-1347.61,0.00019452,2]
[360878784,1747095058980,-400.0,0.00019452,2]
[360878785,1747095058989,-400.0,0.00019452,2]
[360878786,1747095058998,-400.0,0.00019452,2]
[360878787,1747095059007,-400.0,0.00019452,2]
[360878788,1747095059016,-400.0,0.00019452,2]
[360878789,1747095059025,-400.0,0.00019452,2]
[360878790,1747095059035,-400.0,0.00019452,2]
[360878791,1747095059044,-400.0,0.00019452,2]
[360878792,1747095059053,-400.0,0.00019452,2]
[360878793,1747095059062,-400.0,0.00019452,2]
[360878794,1747095059071,-697.74,0.00019452,2]
[360878795,1747095059080,-400.0,0.00019452,2]
[360878796,1747095059089,-548.514282,0.00019452,2]
[360878797,1747095059098,-548.514282,0.00019452,2]
[360878798,1747095059107,-548.514282,0.00019452,2]
[360878799,1747095059118,-400.0,0.00019452,2]
[360878800,1747095059127,-500.0,0.00019452,2]
[360878801,1747095059136,-548.514282,0.00019452,2]
[360878802,1747095059145,-400.0,0.00019452,2]
[360878803,1747095059155,-400.0,0.00019452,2]
[360878804,1747095059165,-400.0,0.00019452,2]
[360878805,1747095059177,-548.514282,0.00019452,2]
[360878806,1747095059186,-548.514282,0.00019452,2]
[360878807,1747095059195,-548.514282,0.00019452,2]
[360878808,1747095059204,-548.514282,0.00019452,2]
[360878809,1747095059214,-400.0,0.00019452,2]
[360878810,1747095059223,-400.0,0.00019452,2]
[360878811,1747095059232,-400.0,0.00019452,2]
[360878812,1747095059242,-675.22,0.00019452,2]
[360878813,1747095059251,-400.0,0.00019452,2]
[360878814,1747095059261,-400.0,0.00019452,2]
[360878815,1747095059281,-400.0,0.00019452,2]
[360878816,1747095059291,-715.21,0.00019452,2]
[360878817,1747095059300,-400.0,0.00019452,2]
[360878818,1747095059310,-400.0,0.00019452,2]
[360878819,1747095059319,-400.0,0.00019452,2]
[360878820,1747095059328,-400.0,0.00019452,2]
[360878821,1747095059338,-1056.41,0.00019452,2]
[360878822,1747095059347,-999.79,0.00019452,2]
[360878823,1747095059356,-894.68,0.00019452,2]
[360878824,1747095059367,-400.0,0.00019452,2]
[360878825,1747095059376,-400.0,0.00019452,2]
[360878826,1747095059386,-400.0,0.00019452,2]
[360878827,1747095059395,-400.0,0.00019452,2]
[360878828,1747095059404,-1158.25,0.00019452,2]
[360878829,1747095059414,-495.24,0.00019452,2]
[360878830,1747095059423,-400.0,0.00019452,2]
[360878831,1747095059432,-414.38536558,0.00019452,2]
[360878832,1747095059441,-400.0,0.00019452,2]
[360878833,1747095059451,-1305.93,0.00019452,2]
[360878834,1747095059460,-2157.84,0.00019452,2]
[360878835,1747095059470,-1669.11,0.00019452,2]
[360878836,1747095059479,-400.0,0.00019452,2]
[360878837,1747095059489,-400.0,0.00019452,2]
[360878838,1747095059498,-400.0,0.00019452,2]
[360878839,1747095059508,-400.0,0.00019452,2]
[360878840,1747095059518,-1000.0,0.00019452,2]
[360878841,1747095059527,-400.0,0.00019452,2]
[360878842,1747095059537,-400.0,0.00019452,2]
[360878843,1747095059546,-400.0,0.00019452,2]
[360878844,1747095059556,-697.17,0.00019452,2]
[360878845,1747095059566,-400.0,0.00019452,2]
[360878846,1747095059575,-400.0,0.00019452,2]
[360878847,1747095059585,-400.0,0.00019452,2]
[360878848,1747095059595,-1423.88,0.00019452,2]
[360878849,1747095059604,-400.0,0.00019452,2]
[360878850,1747095059616,-733.0,0.00019452,2]
[360878851,1747095059625,-400.0,0.00019452,2]
[360878852,1747095059635,-400.0,0.00019452,2]
[360878853,1747095059644,-991.66,0.00019452,2]
[360878854,1747095059654,-2557.02,0.00019452,2]
[360878855,1747095059663,-400.0,0.00019452,2]
[360878856,1747095059672,-1831.34,0.00019452,2]
[360878857,1747095059681,-400.0,0.00019452,2]
[360878858,1747095059691,-529.89,0.00019452,2]
[360878859,1747095059700,-400.0,0.00019452,2]
[360878860,1747095059709,-816.49,0.00019452,2]
[360878861,1747095059719,-208.927375,0.00019452,2]
[360878862,1747095059728,-400.0,0.00019452,2]
[360878863,1747095059737,-400.0,0.00019452,2]
[360878864,1747095059747,-400.0,0.00019452,2]
[360878865,1747095059758,-1147.72,0.00019452,2]
[360878866,1747095059768,-400.0,0.00019452,2]
[360878867,1747095059778,-358.0,0.00019452,2]
[360878868,1747095059787,-400.0,0.00019452,2]
[360878869,1747095059797,-400.0,0.00019452,2]
[360878870,1747095059806,-400.0,0.00019452,2]
[360878871,1747095059815,-429.59956212,0.00019452,2]
[360878872,1747095059825,-400.0,0.00019452,2]
[360878873,1747095059834,-274.54800857,0.00019452,2]
[360878874,1747095059843,-400.0,0.00019452,2]
[360878875,1747095059852,-501.76789381,0.00019452,2]
[360878876,1747095059863,-400.0,0.00019452,2]
[360878877,1747095059872,-432.28,0.00019452,2]
[360878878,1747095059881,-400.0,0.00019452,2]
[360878879,1747095059890,-400.0,0.00019452,2]
[360878880,1747095059899,-1158.03,0.00019452,2]
[360878881,1747095059909,-1440.67,0.00019452,2]
[360878882,1747095059918,-400.0,0.00019452,2]
[360878883,1747095059927,-400.0,0.00019452,2]
[360878884,1747095059936,-400.0,0.00019452,2]
[360878885,1747095059946,-400.0,0.00019452,2]
[360878886,1747095059955,-648.44,0.00019452,2]
[360878887,1747095059964,-400.0,0.00019452,2]
[360878888,1747095059973,-519.12,0.00019452,2]
[360878889,1747095059982,-400.0,0.00019452,2]
[360878890,1747095059992,-400.0,0.00019452,2]
[360878891,1747095060001,-400.0,0.00019452,2]
[360878892,1747095060010,-962.81,0.00019452,2]
[360878893,1747095060019,-497.13,0.00019452,2]
[360878894,1747095060029,-400.0,0.00019452,2]
[360878895,1747095060039,-400.0,0.00019452,2]
[360878896,1747095060049,-191.526324,0.00019452,2]
[360878897,1747095060059,-400.0,0.00019452,2]
[360878898,1747095060068,-191.526324,0.00019452,2]
[360878899,1747095060078,-185.817685,0.00019452,2]
[360878900,1747095060087,-191.526324,0.00019452,2]
[360878901,1747095060097,-400.0,0.00019452,2]
[360878902,1747095060106,-191.526324,0.00019452,2]
[360878903,1747095060118,-1000.0,0.00019452,2]
[360878904,1747095060127,-191.526324,0.00019452,2]
[360878905,1747095060137,-400.0,0.00019452,2]
[360878906,1747095060146,-191.526324,0.00019452,2]
[360878907,1747095060155,-497.46,0.00019452,2]
[360878908,1747095060165,-191.526324,0.00019452,2]
[360878909,1747095060178,-400.0,0.00019452,2]
[360878910,1747095060187,-191.526324,0.00019452,2]
[360878911,1747095060196,-577.67,0.00019452,2]
[360878912,1747095060206,-400.0,0.00019452,2]
[360878913,1747095060217,-400.0,0.00019452,2]
[360878914,1747095060226,-151.0,0.00019452,2]
[360878915,1747095060240,-557.75,0.00019452,2]
[360878916,1747095060249,-151.0,0.00019452,2]
[360878917,1747095060259,-151.0,0.00019452,2]
[360878918,1747095060269,-745.5,0.00019452,2]
[360878919,1747095060278,-151.0,0.00019452,2]
[360878920,1747095060287,-432.27,0.00019452,2]
[360878921,1747095060297,-400.0,0.00019452,2]
[360878922,1747095060306,-400.0,0.00019452,2]
[360878923,1747095060486,-400.0,0.00019452,2]
[360878924,1747095060496,-827.27,0.00019452,2]
[360878925,1747095060505,-400.0,0.00019452,2]
[360878926,1747095060514,-400.0,0.00019452,2]
[360878927,1747095060524,-400.0,0.00019452,2]
[360878928,1747095060533,-553.55,0.00019452,2]
[360878929,1747095060543,-478.61,0.00019452,2]
[360878930,1747095060552,-400.0,0.00019452,2]
[360878931,1747095060561,-400.0,0.00019452,2]
[360878932,1747095060571,-400.0,0.00019452,2]
[360878933,1747095060580,-400.0,0.00019452,2]
[360878934,1747095060589,-356.422408,0.00019452,2]
[360878935,1747095060598,-1197.82,0.00019452,2]
[360878936,1747095060608,-356.422408,0.00019452,2]
[360878937,1747095060619,-690.1,0.00019452,2]
[360878938,1747095060629,-356.422408,0.00019452,2]
[360878939,1747095060638,-400.0,0.00019452,2]
[360878940,1747095060647,-356.422408,0.00019452,2]
[360878941,1747095060657,-400.0,0.00019452,2]
[360878942,1747095060666,-1104.6,0.00019452,2]
[360878943,1747095060676,-400.0,0.00019452,2]
[360878944,1747095060685,-356.422408,0.00019452,2]
[360878945,1747095060694,-1281.69,0.00019452,2]
[360878946,1747095060704,-356.422408,0.00019452,2]
[360878947,1747095060713,-1109.33,0.00019452,2]
[360878948,1747095060724,-356.422408,0.00019452,2]
[360878949,1747095060733,-356.422408,0.00019452,2]
[360878950,1747095060742,-1262.78,0.00019452,2]
[360878951,1747095060752,-1241.06,0.00019452,2]
[360878952,1747095060761,-593.86,0.00019452,2]
[360878953,1747095060770,-400.0,0.00019452,2]
[360878954,1747095060779,-246.82887184,0.00019452,2]
[360878955,1747095060788,-400.0,0.00019452,2]
[360878956,1747095060797,-522.4636457,0.00019452,2]
[360878957,1747095060807,-579.85,0.00019452,2]
[360878958,1747095060816,-243.17903298,0.00019452,2]
[360878959,1747095060826,-400.0,0.00019452,2]
[360878960,1747095060835,-400.0,0.00019452,2]
[360878961,1747095060844,-546.05,0.00019452,2]
[360878962,1747095060853,-400.0,0.00019452,2]
[360878963,1747095060864,-2258.050333,0.00019452,2]
[360878964,1747095060873,-400.0,0.00019452,2]
[360878965,1747095060882,-2258.050333,0.00019452,2]
[360878966,1747095060891,-2258.050333,0.00019452,2]
[360878967,1747095060901,-3890.18,0.00019452,2]
[360878968,1747095060910,-2258.050333,0.00019452,2]
[360878969,1747095060920,-400.0,0.00019452,2]
[360878970,1747095060929,-400.0,0.00019452,2]
[360878971,1747095060939,-400.0,0.00019452,2]
[360878972,1747095060949,-400.0,0.00019452,2]
[360878973,1747095060958,-2648.1,0.00019452,2]
[360878974,1747095060967,-598.71,0.00019452,2]
[360878975,1747095060977,-1013.37,0.00019452,2]
[360878976,1747095060986,-407.10317004,0.00019452,2]
[360878977,1747095060996,-216.380859,0.00019452,2]
[360878978,1747095061005,-2600.47,0.00019452,2]
[360878979,1747095061014,-216.380859,0.00019452,2]
[360878980,1747095061023,-536.57,0.00019452,2]
[360878981,1747095061032,-216.380859,0.00019452,2]
[360878982,1747095061041,-424.53,0.00019452,2]
[360878983,1747095061050,-216.380859,0.00019452,2]
[360878984,1747095061059,-822.09,0.00019452,2]
[360878985,1747095061068,-216.380859,0.00019452,2]
[360878986,1747095061077,-400.0,0.00019452,2]
[360878987,1747095061086,-216.380859,0.00019452,2]
[360878988,1747095061095,-216.380859,0.00019452,2]
[360878989,1747095061105,-400.0,0.00019452,2]
[360878990,1747095061115,-216.380859,0.00019452,2]
[360878991,1747095061124,-420.95,0.00019452,2]
[360878992,1747095061134,-400.0,0.00019452,2]
[360878993,1747095061142,-400.0,0.00019452,2]
[360878994,1747095061151,-400.0,0.00019452,2]
[360878995,1747095061160,-400.0,0.00019452,2]
[360878996,1747095061173,-2294.07,0.00019452,2]
[360878997,1747095061183,-400.0,0.00019452,2]
[360878998,1747095061193,-521.95,0.00019452,2]
[360878999,1747095061202,-400.0,0.00019452,2]
[360879000,1747095061213,-3221.19,0.00019452,2]
[360879001,1747095061224,-400.0,0.00019452,2]
[360879002,1747095061233,-660.08,0.00019452,2]
[360879003,1747095061245,-400.0,0.00019452,2]
[360879004,1747095061255,-337.72144045,0.00019452,2]
[360879005,1747095061271,-151.0,0.00019452,2]
[360879006,1747095061284,-151.0,0.00019452,2]
[360879007,1747095061292,-526.49,0.00019452,2]
[360879008,1747095061302,-151.0,0.00019452,2]
[360879009,1747095061311,-755.42,0.00019452,2]
[360879010,1747095061320,-489.37,0.00019452,2]
[360879011,1747095061330,-2259.65,0.00019452,2]
[360879012,1747095061339,-400.0,0.00019452,2]
[360879013,1747095061348,-3997.17,0.00019452,2]
[360879014,1747095061357,-408.17,0.00019452,2]
[360879015,1747095061368,-400.0,0.00019452,2]
[360879016,1747095061377,-796.22,0.00019452,2]
[360879017,1747095061387,-400.0,0.00019452,2]
[360879018,1747095061396,-400.0,0.00019452,2]
[360879019,1747095061405,-1278.21,0.00019452,2]
[360879020,1747095061414,-400.0,0.00019452,2]
[360879021,1747095061424,-350.979608,0.00019452,2]
[360879022,1747095061433,-400.0,0.00019452,2]
[360879023,1747095061443,-350.979608,0.00019452,2]
[360879024,1747095061452,-350.979608,0.00019452,2]
[360879025,1747095061462,-350.979608,0.00019452,2]
[360879026,1747095061471,-511.56,0.00019452,2]
[360879027,1747095061481,-350.979608,0.00019452,2]
[360879028,1747095061490,-350.979608,0.00019452,2]
[360879029,1747095061500,-350.979608,0.00019452,2]
[360879030,1747095061509,-350.979608,0.00019452,2]
[360879031,1747095061518,-400.0,0.00019452,2]
[360879032,1747095061528,-400.0,0.00019452,2]
[360879033,1747095061537,-400.0,0.00019452,2]
[360879034,1747095061547,-400.0,0.00019452,2]
[360879035,1747095061556,-1183.95,0.00019452,2]
[360879036,1747095061566,-400.0,0.00019452,2]
[360879037,1747095061575,-807.11,0.00019452,2]
[360879038,1747095061584,-400.0,0.00019452,2]
[360879039,1747095061594,-400.0,0.00019452,2]
[360879040,1747095061603,-3183.77,0.00019452,2]
[360879041,1747095061612,-151.0,0.00019452,2]
[360879042,1747095061623,-151.0,0.00019452,2]
[360879043,1747095061632,-151.0,0.00019452,2]
[360879044,1747095061641,-151.0,0.00019452,2]
[360879045,1747095061651,-400.0,0.00019452,2]
[360879046,1747095061661,-1967.57,0.00019452,2]
[360879047,1747095061670,-454.41,0.00019452,2]
[360879048,1747095061679,-714.26,0.00019452,2]
[360879049,1747095061688,-400.0,0.00019452,2]
[360879050,1747095061698,-400.0,0.00019452,2]
[360879051,1747095061707,-652.63,0.00019452,2]
[360879052,1747095061716,-400.0,0.00019452,2]
[360879053,1747095061726,-570.846157,0.00019452,2]
[360879054,1747095061735,-570.846157,0.00019452,2]
[360879055,1747095061744,-570.846157,0.00019452,2]
[360879056,1747095061754,-570.846157,0.00019452,2]
[360879057,1747095061763,-400.0,0.00019452,2]
[360879058,1747095061772,-570.846157,0.00019452,2]
[360879059,1747095061781,-2710.82,0.00019452,2]
[360879060,1747095061791,-400.0,0.00019452,2]
[360879061,1747095061801,-1001.07,0.00019452,2]
[360879062,1747095061810,-400.0,0.00019452,2]
[360879063,1747095061819,-400.0,0.00019452,2]
[360879064,1747095061829,-570.846157,0.00019452,2]
[360879065,1747095061838,-570.846157,0.00019452,2]
[360879066,1747095061848,-400.0,0.00019452,2]
[360879067,1747095061858,-570.846157,0.00019452,2]
[360879068,1747095061872,-570.846157,0.00019452,2]
[360879069,1747095061881,-570.846157,0.00019452,2]
[360879070,1747095061891,-400.0,0.00019452,2]
[360879071,1747095061900,-151.0,0.00019452,2]
[360879072,1747095061910,-400.0,0.00019452,2]
[360879073,1747095061919,-151.0,0.00019452,2]
[360879074,1747095061930,-151.0,0.00019452,2]
[360879075,1747095061939,-151.0,0.00019452,2]
[360879076,1747095061949,-444.37,0.00019452,2]
[360879077,1747095061958,-400.0,0.00019452,2]
[360879078,1747095061968,-500.0,0.00019452,2]
[360879079,1747095061978,-400.0,0.00019452,2]
[360879080,1747095061986,-400.0,0.00019452,2]
[360879081,1747095061996,-151.0,0.00019452,2]
[360879082,1747095062005,-151.0,0.00019452,2]
[360879083,1747095062015,-343.10323134,0.00019452,2]
[360879084,1747095062024,-500.0,0.00019452,2]
[360879085,1747095062034,-1618.78,0.00019452,2]
[360879086,1747095062043,-279.960592,0.00019452,2]
[360879087,1747095062053,-400.0,0.00019452,2]
[360879088,1747095062062,-478.21,0.00019452,2]
[360879089,1747095062071,-630.64,0.00019452,2]
[360879090,1747095062081,-460.38,0.00019452,2]
[360879091,1747095062090,-400.0,0.00019452,2]
[360879092,1747095062099,-1023.44,0.00019452,2]
[360879093,1747095062108,-400.0,0.00019452,2]
[360879094,1747095062121,-400.0,0.00019452,2]
[360879095,1747095062130,-500.0,0.00019452,2]
[360879096,1747095062140,-400.0,0.00019452,2]
[360879097,1747095062149,-151.0,0.00019452,2]
[360879098,1747095062158,-151.0,0.00019452,2]
[360879099,1747095062170,-500.0,0.00019452,2]
[360879100,1747095062180,-151.0,0.00019452,2]
[360879101,1747095062189,-151.0,0.00019452,2]
[360879102,1747095062198,-1128.48,0.00019452,2]
[360879103,1747095062207,-400.0,0.00019452,2]
[360879104,1747095062217,-400.0,0.00019452,2]
[360879105,1747095062226,-500.0,0.00019452,2]
[360879106,1747095062235,-400.0,0.00019452,2]
[360879107,1747095062246,-795.55,0.00019452,2]
[360879108,1747095062256,-400.0,0.00019452,2]
[360879109,1747095062266,-2640.53,0.00019452,2]
[360879110,1747095062275,-400.0,0.00019452,2]
[360879111,1747095062284,-400.0,0.00019452,2]
[360879112,1747095062293,-4865.74,0.00019452,2]
[360879113,1747095062303,-400.0,0.00019452,2]
[360879114,1747095062313,-1826.43,0.00019452,2]
[360879115,1747095062322,-846.01,0.00019452,2]
[360879116,1747095062332,-400.0,0.00019452,2]
[360879117,1747095062341,-1394.72,0.00019452,2]
[360879118,1747095062350,-400.0,0.00019452,2]
[360879119,1747095062360,-408.45,0.00019452,2]
[360879120,1747095062374,-453.97,0.00019452,2]
[360879121,1747095062383,-931.98,0.00019452,2]
[360879122,1747095062392,-151.0,0.00019452,2]
[360879123,1747095062401,-400.0,0.00019452,2]
[360879124,1747095062411,-151.0,0.00019452,2]
[360879125,1747095062420,-151.0,0.00019452,2]
[360879126,1747095062430,-151.0,0.00019452,2]
[360879127,1747095062439,-400.0,0.00019452,2]
[360879128,1747095062448,-400.0,0.00019452,2]